Cogmind - Beta 15 @@@ ROGUE MODE // 2025.09.28 @ 14:09:55 Player: Gruff Result: Self-destructed Performance ------------- Evolutions (3) 1500 Regions Visited (4) 800 Robots Destroyed (127) 635 Value Destroyed (3066) 3066 Prototype IDs (8) 160 Alien Tech Used (0) 0 Bonus (52) 52 TOTAL SCORE: 6213 Bonus ------- High Alert Combat Kills 52 Cogmind --------- Core Integrity 165/700 Matter 300/300 Energy 100/100 System Corruption 7% Temperature Warm (193) Movement Core (700) Ox13 Location -7/Factory Parts ------- > --- POWER (1) -------- (None) > --- PROPULSION (4) --- (None) > --- UTILITY (6) ------ High-capacity Storage Unit Improved Terrain Scan Processor Advanced Targeting Computer > --- WEAPON (2) ------- (None) > --- INVENTORY (20) --- Cooled Ion Engine Light Nuclear Core Armored Wheel Aerolev Unit Aerolev Unit Aerolev Unit Aerolev Unit Gravmag System Advanced Heat Sink Trap Scanner Machine Analyzer Improved Signal Interpreter Improved Salvage Targeting Computer Particle Charger System Shield System Restoration Module Gatling Laser Improved Datajack Peak State ------------ > --- POWER ------------ Light Nuclear Core > --- PROPULSION ------- Armored Treads Advanced Treads > --- UTILITY ---------- Advanced Heat Sink High-capacity Storage Unit Improved Sensor Array Improved Signal Interpreter Improved Terrain Scan Processor Advanced Targeting Computer > --- WEAPON ----------- Gatling Laser Gatling Laser > --- INVENTORY -------- Cooled Ion Engine Deuterium Engine Armored Wheel Aerolev Unit Aerolev Unit Aerolev Unit Aerolev Unit Trap Scanner Machine Analyzer Improved Signal Interpreter Improved Terrain Scanner Particle Charger Particle Charger Hardlight Generator System Restoration Module Gatling Laser Gatling Laser Improved Datajack [Rating: 41] Favorites ----------- Power Light Nuclear Core Engine Ion Engine Power Core Light Nuclear Core Propulsion Wheel Treads Advanced Treads Leg Aluminum Leg Wheel Wheel Hover Unit Aerolev Unit Utility Improved Signal Interpreter Device Heat Sink Storage Huge Storage Unit Processor Improved Signal Interpreter Hackware Hacking Suite Weapon Gatling Laser Energy Gun Gatling Laser Energy Cannon Beam Cannon Ballistic Gun Heavy Assault Rifle Ballistic Cannon Improved Light Cannon Special Melee Weapon Datajack Build | -11 -10 -9 -8 -7 ------- Run | Yrd Mat Mat Mat Fac Slots Evolved 6 | . . 2 2 2 Power . | . . . . . Propulsion 2 | . . . 2 . Utility 4 | . . 2 . 2 Weapon . | . . . . . Parts Attached 76 | 7 9 30 21 9 Power 11 | 1 . 4 4 2 Engine 6 | 1 . 4 . 1 Core 5 | . . . 4 1 Reactor . | . . . . . Propulsion 21 | 2 4 7 7 1 Treads 6 | 2 . . 3 1 Leg 2 | . 2 . . . Wheel 12 | . 2 7 3 . Hover 1 | . . . 1 . Flight . | . . . . . Utility 23 | 2 2 9 6 4 Device 15 | 1 1 6 4 3 Storage 3 | 1 1 . 1 . Processor 4 | . . 2 1 1 Hackware 1 | . . 1 . . Protection . | . . . . . Artifact . | . . . . . Weapon 21 | 2 3 10 4 2 Energy Gun 11 | 2 . 5 3 1 Energy Cannon 4 | . 2 1 1 . Ballistic Gun 2 | . . 2 . . Ballistic Cannon 2 | . . 2 . . Launcher . | . . . . . Special Weapon . | . . . . . Impact Weapon . | . . . . . Slashing Weapon . | . . . . . Piercing Weapon . | . . . . . Special Melee Weapon 2 | . 1 . . 1 Unidentified Prototypes 7 | . . 4 3 . Parts Lost 35 | . 3 11 9 12 Power 6 | . . 2 2 2 Propulsion 14 | . 1 4 6 3 Utility 8 | . . 3 1 4 Weapon 7 | . 2 2 . 3 Highest Loss Streak 11 | . 1 4 3 11 To Critical Strikes . | . . . . . Average Backups 15 | . 2 7 22 19 Power 2 | . 1 2 3 2 Propulsion 3 | . . 1 4 5 Utility 5 | . 1 . 8 8 Weapon 2 | . . 2 5 1 Tool/Special . | . . . . . Unused Backups 29 | . . 1 15 13 Power 4 | . . 1 2 1 Propulsion 6 | . . . 2 4 Utility 12 | . . . 5 7 Weapon 7 | . . . 6 1 Tool/Special . | . . . . . Average Slot Usage (%) 91 | . 91 92 92 89 Engine 4 | . 14 10 1 . Core 4 | . . . 7 6 Treads 8 | . 7 . 4 20 Wheel 15 | . 15 19 24 . Device 13 | . 14 16 11 14 Storage 9 | . 14 11 9 7 Processor 15 | . . 11 15 22 Energy Gun 14 | . . 16 17 14 Energy Cannon 2 | . 20 1 . . Peak Build Rating 41 | 9 9 22 37 41 Average Rating 27 | 5 6 15 31 40 On Entrance 14 | . 9 6 22 35 Naked Turns . | . . . . . Heaviest Build 102 | 14 92 100 102 58 Greatest Support 62 | 40 40 32 42 62 Greatest Overweight (x) 17 | . 2 9 4 17 Average Overweight (x) 2 | . 1 3 2 . Largest Inventory Capacity 25 | 8 25 25 25 20 Average Capacity 21 | 7 16 25 23 20 Most Carried 25 | 1 4 14 25 20 Average Carried 15 | . 2 7 22 19 Final Capacity 25 | 8 25 25 20 20 Final Carried 20 | 1 3 14 20 18 Class Distribution -------------------- 48% | Mutant 27% | Skirmisher 23% | Scavenger-Mutant Dominant Class ---------------- Mutant | -10/Materials Mutant | -9/Materials Mutant | -8/Materials Skirmisher | -7/Factory Resources | -11 -10 -9 -8 -7 ----------- Run | Yrd Mat Mat Mat Fac Matter Collected 1122 | 270 75 366 356 55 Remotely . | . . . . . Salvage Created 4657 | 100 814 1568 1808 367 Parts 238 | 3 37 93 91 14 Haulers Intercepted 11 | . 1 4 6 . Recyclers Shooed 1 | . 1 . . . Parts Field Recycled . | . . . . . Retrieved Matter . | . . . . . Parts Self-Destructed . | . . . . . Prevented . | . . . . . Kills | -11 -10 -9 -8 -7 ------- Run | Yrd Mat Mat Mat Fac Combat Hostiles Destroyed 86 | . 16 33 31 6 Guns 60 | . . 24 30 6 Cannons 22 | . 16 6 . . AOE 1 | . . 1 . . Classes Destroyed 13 | 2 6 2 2 1 Worker 8 | . 1 5 2 . Builder 3 | . . 2 1 . Tunneler 1 | 1 . . . . Hauler 11 | . 1 4 6 . Recycler 10 | 1 4 1 3 1 Operator 4 | . 2 1 1 . Watcher 4 | . 1 1 1 1 Swarmer 31 | . 9 14 7 1 Grunt 30 | . 7 10 13 . Sentry 18 | . . 9 8 1 Hunter 3 | . . . 2 1 Programmer 3 | . . . . 3 Heavy 1 | . . . 1 . Best Kill Streak 11 | 2 9 11 4 3 Combat Bots Only 11 | . 3 11 4 1 Max Kills in Single Turn 3 | 1 2 1 3 1 Gunslinging 1 | . . . 1 . Exploded 1 | . . 1 . . Melee . | . . . . . Uniques/NPCs Destroyed . | . . . . . Combat | -11 -10 -9 -8 -7 -------- Run | Yrd Mat Mat Mat Fac Hostile Shots Fired 458 | . 66 160 76 156 Missed 137 | . 23 45 19 50 Hits 321 | . 43 115 57 106 Projectile 321 | . 43 115 57 106 AOE 3 | . 2 . 1 . Critical Strikes 8 | . . 4 . 4 Part Disruptions 1 | . . . . 1 Damage Taken 4420 | . 597 1253 1080 1490 Core 1122 | . 146 278 163 535 Absorbed by Shields 28 | . . 24 4 . Regen/Repaired (Parts) 89 | . . . 89 . Core Remaining (%) 60 | 100 41 30 70 . Volleys Fired 266 | 4 53 123 68 18 Largest 2 | 2 2 2 2 2 Hottest 160 | 80 120 112 160 160 Shots Fired 484 | 8 90 214 137 35 Gun 362 | 8 . 182 137 35 Cannon 122 | . 90 32 . . Launcher . | . . . . . Special . | . . . . . Kinetic 20 | . . 20 . . Thermal 446 | 4 90 182 135 35 Explosive . | . . . . . Electromagnetic 18 | 4 . 12 2 . Robot Hit Streak 22 | 3 6 22 17 16 Robot Miss Streak 10 | 1 3 10 5 3 Penetration Max . | . . . . . Secondary Targets 14 | . . 10 3 1 Max Gunslinging Chain 1 | . . 1 1 1 Shots Hit Robots 342 | 5 59 138 110 30 Core Hits 211 | 2 25 55 106 23 Critical Kills . | . . . . . Critical Parts Destroyed . | . . . . . Critical Strikes 13 | . . 13 . . Burn 13 | . . 13 . . Melee Attacks 3 | . 3 . . . Impact . | . . . . . Slashing . | . . . . . Piercing . | . . . . . Sneak Attacks 1 | . 1 . . . Combat Hostiles . | . . . . . Follow-up Attacks . | . . . . . Damage Inflicted 7111 | 60 1053 2574 2612 812 Guns 5429 | 60 . 1961 2596 812 Cannons 1504 | . 1050 454 . . Explosions 107 | . . 107 . . Melee . | . . . . . Ramming 71 | . 3 52 16 . Kinetic 109 | . . 109 . . Thermal 6713 | 33 1050 2262 2556 812 Explosive . | . . . . . Electromagnetic 218 | 27 . 151 40 . Impact . | . . . . . Slashing . | . . . . . Piercing . | . . . . . Highest Corruption 7 | . . 1 1 7 Average Corruption 1 | . . 1 1 2 Corruption Purged . | . . . . . Corruption Blocked . | . . . . . Effects 31 | . . 10 20 1 Message Errors 8 | . . 2 6 . Matter Fused 10 | . . 5 5 . Heat Flow Errors 2 | . . . 1 1 Energy Discharges 2 | . . 1 1 . Data Loss (minor) 3 | . . 2 1 . Data Loss (major) 2 | . . . 2 . Misfires 2 | . . . 2 . Alerts 1 | . . . 1 . Weapon Failures 1 | . . . 1 . Overload Shots . | . . . . . Overflow Damage 13 | . 5 8 . . Projectiles 5 | . 5 . . . Explosions . | . . . . . Melee 8 | . . 8 . . Knockbacks . | . . . . . Impact . | . . . . . Kinetic . | . . . . . Secondary . | . . . . . Self-Inflicted Damage 32 | . . 25 7 . Shots . | . . . . . Rammed 6 | . 1 3 2 . Targets Rammed 6 | . 1 3 2 . Kicked . | . . . . . Crushed . | . . . . . Highest Temperature 340 | 54 210 284 340 261 Average Temperature 69 | 25 65 62 72 88 Received Heat Transfer 856 | . 144 343 324 45 Siege Activations . | . . . . . Martial Activations . | . . . . . Shielding Activations . | . . . . . Robots Disrupted . | . . . . . Combat Hostiles . | . . . . . Robots Corrupted 1 | . . 1 . . Combat Hostiles . | . . . . . Parts Fried 3 | . . 3 . . Impact Corruptions 1 | . . 1 . . Robots Melted 3 | . . 2 1 . Combat Hostiles 3 | . . 2 1 . Parts Melted 29 | . 3 13 7 6 Heat Transferred 15209 | 75 2220 5489 5750 1675 Parts Sabotaged . | . . . . . Parts Stolen . | . . . . . Parts Stripped . | . . . . . Power Chain Reactions 3 | . . 3 . . Alert | -11 -10 -9 -8 -7 ------- Run | Yrd Mat Mat Mat Fac Maximum Alert Level 2 | . 1 2 2 . Low Security (%) 78 | 100 81 52 75 100 Level 1 12 | . 18 16 18 . Level 2 8 | . . 30 5 . Level 3 . | . . . . . Level 4 . | . . . . . Level 5 . | . . . . . High Security . | . . . . . Max Security . | . . . . . Peak Influence 535 | 10 238 535 409 175 Initial 208 | . . 69 208 175 Average 138 | 1 126 249 167 23 Influence Increases 2638 | 10 457 1045 929 197 Destroy 0b10 Robot/C 1720 | . 320 660 620 120 Destroy 0b10 Robot/NC 205 | 10 45 70 70 10 Destroy Leader 440 | . 44 170 174 52 Trap Triggered on 0b10 10 | . 10 . . . Successful Hack 46 | . 7 20 19 . Disable Machine 60 | . 15 45 . . Destroy Structure 22 | . 1 20 1 . Partial Spotted 15 | . . . 15 . Lose Combat Pursuer 120 | . 15 60 30 15 Influence Decreases 2638 | 10 292 715 1037 584 Entered New Map 595 | . . 96 287 212 Time Decay 1757 | 10 272 509 660 306 Lost Part 286 | . 20 110 90 66 Squads Dispatched 16 | . 2 2 5 7 Investigation 5 | . 1 1 3 . Extermination 3 | . . . . 3 Reinforcement 5 | . 1 1 2 1 Assault . | . . . . . Garrison 3 | . . . . 3 Intercept . | . . . . . Searches Triggered . | . . . . . Construction Impeded . | . . . . . Haulers Reinforced . | . . . . . Active Scanning Responses . | . . . . . Cargo Convoy Interrupts 1 | . . . . 1 Stealth | -11 -10 -9 -8 -7 --------- Run | Yrd Mat Mat Mat Fac Distress Signals 9 | . 3 4 1 1 Communications Jammed . | . . . . . Distress Signals . | . . . . . Times Spotted 147 | . 25 51 45 26 Peak Tracking Total 12 | . 4 7 5 12 Tactical Retreats 7 | . 1 4 1 1 Traps | -11 -10 -9 -8 -7 ------- Run | Yrd Mat Mat Mat Fac Traps Triggered 6 | . 1 1 4 . Indirectly . | . . . . . Trap Hack Attempts 65 | . 29 22 . 14 Triggered 1 | . . . . 1 Disarmed 2 | . . 2 . . Reprogrammed 5 | . 2 . . 3 Reused 1 | . 1 . . . Traps Extracted . | . . . . . Installed . | . . . . . Triggered 1 | . 1 . . . Machines | -11 -10 -9 -8 -7 ---------- Run | Yrd Mat Mat Mat Fac Machines Disabled 7 | . 1 6 . . Max in Single Turn 1 | . 1 1 . . Garrison Access 1 | . . . 1 . Machines Repaired . | . . . . . Machines Dismantled . | . . . . . Machines Sabotaged . | . . . . . Overloaded Fab Kills . | . . . . . Hacking | -11 -10 -9 -8 -7 --------- Run | Yrd Mat Mat Mat Fac Machines Accessed 22 | . 4 6 10 2 Terminals 18 | . 4 6 7 1 Fabricators . | . . . . . Repair Stations 2 | . . . 2 . Recycling Units . | . . . . . Scanalyzers . | . . . . . Garrison Access 2 | . . . 1 1 Total Hacks 52 | . 8 14 27 3 Successful 34 | . 5 9 18 2 Failed 18 | . 3 5 9 1 Catastrophic 3 | . . . 2 1 Database Lockouts . | . . . . . Manual 31 | . 6 12 11 2 Terminals 42 | . 8 14 18 2 Fabricators . | . . . . . Repair Stations 6 | . . . 6 . Recycling Units . | . . . . . Scanalyzers . | . . . . . Garrison Access 4 | . . . 3 1 Terminal Hacks 6 | . . 1 5 . Record 1 | . . 1 . . Prototype ID Bank 1 | . . . 1 . Recycling Unit Index 1 | . . . 1 . Alert Level 2 | . . . 2 . Hauler Manifests 1 | . . . 1 . Fabricator Hacks . | . . . . . Repair Station Hacks 4 | . . . 4 . Scan Component 2 | . . . 2 . Repair 2 | . . . 2 . Recycling Unit Hacks . | . . . . . Scanalyzer . | . . . . . Garrison Access Hacks 1 | . . . 1 . Seal Access 1 | . . . 1 . Unauthorized Hacks 23 | . 5 8 8 2 Terminals 23 | . 5 8 8 2 Botnet 8 | . 1 3 3 1 Skim 15 | . 4 5 5 1 Fabricators . | . . . . . Repair Stations . | . . . . . Recycling Units . | . . . . . Scanalyzers . | . . . . . Garrison Access . | . . . . . Data Cores Recovered 1 | . 1 . . . Used . | . . . . . Hacking Detections 15 | . 3 4 7 1 Full Trace Events 3 | . . 1 2 . Feedback Events . | . . . . . Feedback Blocked . | . . . . . Robot Schematics Acquired . | . . . . . Robots Built . | . . . . . Authchips . | . . . . . Time . | . . . . . Total Robot Build Rating . | . . . . . Part Schematics Acquired . | . . . . . Parts Built . | . . . . . Authchips . | . . . . . Time . | . . . . . Total Part Build Rating . | . . . . . Parts Repaired 2 | . . . 2 . Time 82 | . . . 82 . Parts Recycled . | . . . . . Recycled Matter . | . . . . . Retrieved Matter . | . . . . . Retrieved Components . | . . . . . Parts Scanalyzed . | . . . . . Part Schematics Acquired . | . . . . . Parts Damaged . | . . . . . Bothacking | -11 -10 -9 -8 -7 ------------ Run | Yrd Mat Mat Mat Fac Used RIF Installer . | . . . . . Robots Hacked 1 | . 1 . . . Non-combat . | . . . . . Combat 1 | . 1 . . . Robot Hacks Applied 2 | . 2 . . . parse_system 2 | . 2 . . . Relay Couplers Released . | . . . . . Fabnet Peak Effective % . | . . . . . Robots Rewired . | . . . . . Allies Hacked . | . . . . . Hacks Repelled . | . . . . . Allies | -11 -10 -9 -8 -7 -------- Run | Yrd Mat Mat Mat Fac Total Allies . | . . . . . Largest Group . | . . . . . Highest-Rated Group . | . . . . . Highest-Rated Ally . | . . . . . Total Orders . | . . . . . Ally Attacks . | . . . . . Total Damage . | . . . . . Kills . | . . . . . Allies Corrupted . | . . . . . Allies Melted . | . . . . . Intel | -11 -10 -9 -8 -7 ------- Run | Yrd Mat Mat Mat Fac Active Infowar (turns) 2394 | 6 71 532 . 1785 Sensors 2292 | . . 532 . 1760 Terrain 1860 | 6 71 . . 1783 Robot Analysis Total . | . . . . . Derelict Logs Recovered . | . . . . . Drone Launches . | . . . . . Drone Recoveries . | . . . . . Exploration | -11 -10 -9 -8 -7 ------------- Run | Yrd Mat Mat Mat Fac Turns Passed 6413 | 90 672 1382 2482 1787 Spaces Moved 2759 | 45 332 618 1415 349 Core 5 | 4 . . . 1 Treads 719 | 41 110 . 220 348 Legs 20 | . 20 . . . Wheels 2015 | . 202 618 1195 . Hover . | . . . . . Flight . | . . . . . Fastest Speed 50 | 50 100 130 112 158 Average Speed 143 | 150 138 145 134 176 Slowest Speed 900 | 160 190 215 237 900 Overloaded Moves . | . . . . . Propulsion Burnouts . | . . . . . Robots Hopped . | . . . . . Potential Cave-ins . | . . . . . Cave-ins Triggered . | . . . . . Exploration Rate (%) 45 | 5 49 70 92 11 Regions Visited 4 Branch Regions . Pre-discovered Areas 6 | . . 4 2 . Known Exits Taken 2 | . . 1 1 . Unknown Exits Taken 2 | 1 1 . . . Scrap Searched . | . . . . . Spaces Dug . | . . . . . Terrain Destroyed 17 | . . 17 . . Melee . | . . . . . Projectile . | . . . . . AOE 17 | . . 17 . . Terrain Rammed . | . . . . . Walls Destroyed . | . . . . . Machines Disabled . | . . . . . Actions | -11 -10 -9 -8 -7 --------- Run | Yrd Mat Mat Mat Fac Total 4688 | 56 449 869 1839 1475 Wait 1410 | . 18 57 255 1080 Move 2755 | 44 331 617 1414 349 Hop . | . . . . . Pick Up 58 | 1 4 12 38 3 Fast Attach 24 | 7 1 8 7 1 Attach 18 | . 1 6 6 5 Detach 1 | . . . 1 . Swap 48 | . 7 20 17 4 Drop 34 | . 1 1 31 1 Fire 266 | 4 53 123 68 18 Melee 3 | . 3 . . . Ram 5 | . . 3 2 . Kick . | . . . . . Crush 1 | . 1 . . . Escape Stasis . | . . . . . Rewire . | . . . . . Trap 65 | . 29 22 . 14 Miscellaneous . | . . . . . Route ------- -11/Scrapyard -10/Materials (discovered 2 exits: *Mat / [*Min]) -9/Materials (discovered 3 exits: *Mat / *Min / Sto) -8/Materials (discovered 3 exits: *Fac x3) -7/Factory (discovered 5 exits: Fac x3 / Low x2) History --------- Turn | Location | Event 11 | -11/Scrapyard | Discovered new exit (range 16) 91 | -11/Scrapyard | Entered Materials 278 | -10/Materials | Discovered new exit (range 10) 316 | -10/Materials | Build established: Mutant 484 | -10/Materials | Discovered new exit (range 14) 719 | -10/Materials | Core integrity fell below 50% 763 | -10/Materials | Entered another Materials area 763 | -9/Materials | Evolved 2 slots: Utility x2 1408 | -9/Materials | Destroyed 7 combat bots 1417 | -9/Materials | Lost 4 parts (1p1n1u1w) 1516 | -9/Materials | Discovered new exit (range 10) 1547 | -9/Materials | Identified exit to Mines 1681 | -9/Materials | Core integrity fell below 50% 1754 | -9/Materials | Destroyed 11 combat bots 1962 | -9/Materials | Learned location of Storage (-9) 2009 | -9/Materials | Learned location of Mines (-9) 2027 | -9/Materials | Discovered new exit (range 16) 2046 | -9/Materials | Identified exit to Storage 2091 | -9/Materials | Learned 4 Recycling zone layouts 2091 | -9/Materials | Identified exit to Materials 2133 | -9/Materials | Learned location of Zion (-6) 2145 | -9/Materials | Entered another Materials area 2145 | -8/Materials | Evolved 2 slots: Propulsion x2 2663 | -8/Materials | Repaired Particle Charger 2815 | -8/Materials | Lost 3 parts (2n1u) 3086 | -8/Materials | Discovered new exit (range 12) 3198 | -8/Materials | Build established: Scavenger-Mutant 3400 | -8/Materials | Repaired Gatling Laser 3408 | -8/Materials | Discovered new exit (range 9) 3742 | -8/Materials | Learned location of 1 exit from Recycling 3839 | -8/Materials | Learned Storage terminal intel 3874 | -8/Materials | Learned 4 Lower Caves zone layouts 3901 | -8/Materials | Learned Factory trap positions 3920 | -8/Materials | Learned location of 2 exits from Factory 3929 | -8/Materials | Learned location of 2 exits from Factory 3968 | -8/Materials | Discovered new exit (range 16) 3975 | -8/Materials | Learned location of Lower Caves (-6) 3984 | -8/Materials | Identified exit to Factory 4011 | -8/Materials | Learned 2 Storage zone layouts 4127 | -8/Materials | Build established: Mutant 4627 | -8/Materials | Entered Factory 4627 | -7/Factory | Evolved 2 slots: Utility x2 4628 | -7/Factory | Identified exit to Lower Caves 4629 | -7/Factory | Identified exit to Factory 4630 | -7/Factory | Loaded intel: 67 trap records 4935 | -7/Factory | Build established: Skirmisher 5130 | -7/Factory | Garrison activated, responded to threat 6374 | -7/Factory | Cargo convoy interrupted 6412 | -7/Factory | Core integrity fell below 50% 6414 | -7/Factory | Self-destructed Last Messages --------------- P-60 Hacker resets M-28 Smith, system corruption cleaned. Lgt. Treads destroyed. P-60 Hacker resets S-27 Virus, system corruption cleaned. M-28 Smith repairs O-24 Administrator Imp. Hover Unit. Adv. Treads destroyed. Deuterium Engine destroyed. P-60 Hacker resets O-24 Administrator, system corruption cleaned. Gatling Laser destroyed. T-07 Excavator destroyed. Chain reaction triggered in Mic. Nuclear Core. M-28 Smith destroyed. O-24 Administrator destroyed. System corrupted: Heat flow error (+286). Penetrated by Slug. P-60 Hacker resets P-60 Hacker, system corruption cleaned. Penetrated by Slug. Imp. Terrain Scanner destroyed. K-01 Serf collects debris. Imp. Signal Interpreter destroyed. Penetrated by Slug. Map ----- +----------------------------------------------------+ | ?? ?######## # | | ? #####?### """ """ # ^^^^ ^### T############# | | ######### """ """ # ############### | | ?######### """ """ # ##########?#### | | ? ?######### # ############### | | ?######### """ """ %+ ############### | | #??###?##### """ """ # ##########?#### | | ############ """ """ # ############### | | ############ # ############### | | ############ # #############?# | | ?#####?##### ! ! # ##########???## | | #####?###### # #?########??### | | #####?################### ###?###?##????# | | #?##?#################### ######??#?#??## [ | | ####?#################### #####??##?##??#### | | ##?##?################### k #####??##??#?##?## | | ######################### #####?????#?##?#? | | #######?########## # #####??????#???## | | ##?###?########### "" # ####?###????????# | | ################## "T # #####?##???????## | | ##### # "" # #?## ? ? ??? ???# | | ???##? # # #?## ? ???????? #* | | ??### ??"""" # # ###?? ? ??? # | | ???## """"?" # """" ; u #??#? ???? ?? ?# | | ????# """""" # """" # ####?""?"???????# | | ?????? """""" # """" #@ ##?? "?"? ""?"??# | | ?????????? ? # """"?# ###???"""???""??# | | ?????????"?"?" # """" # #??? ?""" ?"????# | | ???????????""?? ? """? # ####???"" "?""? ## | | ?????????"???"?? # ??# = #?#???"??????????? | | ????????????"? #? ? ?#*%/ ##?#? ? ???? ??# | | ?????????? ??##?##?## p #?## ?????? ## | | ?????????????##+#???#?###* p #?####?##?##+?#### | | ?????????? ?? ?? #????##ps%php #? ??? | | ???????????? ? ?? ??#???#= x i #??? ??## | | ??????????? ?? #?##?## h # ??#### """" " | | ??????????? ?""? ???#?##r #? ? #### ? """" " | | ????????????? ?? ?#####?# u %#? ###? """" " | | ?????????????"?? ??###?# k u##?###### ? """" " | | ???????????? ?? ??##?####% #########^ """" " | | ???????????????? ? ? """"^" | | ???????????????? | | ??????????????"" | | ????????????? | | | ????????????? | | ?????????????####### ################# """## | | ??????????????????## ??#??#?##########"" F"?# | | ?????????????? ????# ? ???? ?? ?##?"""""# | | ???????????????????# " ? ??"""?? ### """" # | | ???????????????????# "%" ? ??"?? ? #######?## | +----------------------------------------------------+ Best States ------------- Heat Dissipation 50 Energy Generation 15 Energy Capacity 280 Matter Stores 300 Matter Capacity 300 Sight Range 16 Robot Scan Range 15 Terrain Scan Range 16 Terrain Scan Density 110 Evasion (%) 55 Targeting Accuracy 8 Recoil Reduction 3 Particle Charging 15 Offensive Hacking 10 Item Schematics ----------------- None Robot Schematics ------------------ None Fabricated ------------ Nothing Repaired ---------- Particle Charger | 8% | -8/Materials Gatling Laser | 22% | -8/Materials Alien Tech Used ----------------- None Achievements -------------- None Challenges ------------ None Game ------ Seed RagnarokScanRay Manual? 0 Play Time 00:44:53 Cumulative 54.3 hours Start 2025.09.28 @ 13:16:46 End 2025.09.28 @ 14:09:55 Sessions 1 Manual Loads 0 Difficulty Rogue Special Mode None Game No. 70 Rogue 70 Adventurer 0 Explorer 0 Win Type - Total 0 Types 0/0/0/0/0/0/0/0/0/0 Lore% 35 Gallery% 34 Achievement% 30 Wizard Run 0 Options --------- Layout 0 ASCII 0 Keyboard 1 Movement Numpad Keybinds 0 Fullscreen 1 Font 24/Smallcaps Map View 183x50 Zoom Use 0% Tactical HUD 0 Map Filters NONE Filters NONE Steam 1 RUN: 4e84fb52-4b92-4045-a77f-7d229e2ffc0b